bitfinex-derivatives/quotes_ETHF0:USTF0_20241008
["timestamp","ask_amount","ask_price","bid_price","bid_amount"]
[1728405164635,4.84649861,2430.9,2430.8,0.41159]
[1728405165232,5.25807861,2431.0,2430.7,1.1981]
[1728405165527,5.25807861,2431.0,2430.9,0.41159]
[1728405165735,0.41158,2431.0,2430.9,0.41159]
[1728405166532,0.4116,2430.9,2430.8,0.41159]
[1728405166735,5.25837137,2430.9,2430.8,0.41159]
[1728405169329,4.84677137,2430.9,2430.8,0.41159]
[1728405169646,0.41157,2431.1,2431.0,0.41157]
[1728405170534,0.41155,2431.2,2430.8,4.23682]
[1728405170735,0.41153,2431.3,2431.2,0.41152]
[1728405170939,1.62672,2431.4,2431.3,0.41152]
[1728405171330,1.2152,2431.4,2431.3,0.41152]
[1728405171735,0.8292,2431.4,2431.3,0.41152]
[1728405171935,4.71999411,2431.5,2431.2,0.4077]
[1728405172143,8.30398411,2431.6,2431.2,0.4077]
[1728405172441,0.4115,2431.5,2431.4,0.41151]
[1728405173239,0.4115,2431.5,2431.3,0.41151]
[1728405173945,0.41151,2431.4,2431.3,0.41151]
[1728405174141,9.33267411,2431.6,2431.3,0.41151]
[1728405174447,0.4115,2431.5,2431.3,0.41151]
[1728405175539,0.41149,2431.5,2431.4,0.4115]
[1728405175738,0.41149,2431.5,2431.2,0.4077]
[1728405175739,0.41149,2431.5,2431.3,0.41151]
[1728405176042,0.41149,2431.5,2431.4,0.41151]
[1728405176549,9.33267411,2431.6,2431.2,0.4077]
[1728405176842,0.41153,2431.3,2431.2,0.41153]
[1728405177040,4.30848411,2431.5,2431.1,0.83795]
[1728405177346,0.41154,2431.2,2431.1,0.4264]
[1728405177647,0.41154,2431.2,2431.1,0.83796]
[1728405177836,0.41154,2431.2,2431.1,0.4264]
[1728405178246,0.41155,2431.2,2431.1,0.41155]
[1728405178436,0.41157,2431.0,2430.9,1.22688]
[1728405180349,0.82067,2431.1,2431.0,0.41157]
[1728405180542,0.82067,2431.1,2430.9,0.8153]
[1728405180750,0.41157,2431.0,2430.9,0.80328]
[1728405180943,0.41157,2431.0,2430.8,3.6217]
[1728405180944,0.41159,2430.9,2430.8,3.61939]
[1728405181649,1.02894,2431.0,2430.6,5.04531]
[1728405181650,0.41163,2430.8,2430.7,0.41161]
[1728405182348,0.4116,2431.0,2430.9,0.41157]
[1728405183155,0.82067,2431.1,2430.7,4.24907]
[1728405183344,9.15603797,2431.3,2431.0,3.2078]
[1728405183546,0.41154,2431.2,2431.1,0.8231]
[1728405183739,0.41154,2431.2,2431.1,1.23466]
[1728405184446,0.41154,2431.2,2431.1,8.1567]
[1728405184447,9.15625107,2431.2,2431.1,8.1567]
[1728405184650,4.30893685,2431.3,2431.2,0.41154]
[1728405185047,4.30893685,2431.3,2431.2,4.52434]
[1728405185240,4.30893685,2431.4,2431.2,4.1128]
[1728405185453,4.30893685,2431.4,2431.3,3.61932]
[1728405185946,5.25880422,2431.5,2431.4,0.41151]
[1728405186353,4.84731422,2431.5,2431.4,0.41151]
[1728405188454,5.25880422,2431.5,2431.4,0.41151]
[1728405189951,0.41151,2431.4,2431.3,3.61931]
[1728405190151,4.71994796,2431.4,2431.3,3.61931]
[1728405190344,4.84731422,2431.5,2431.3,4.1128]
[1728405190650,5.25881422,2431.5,2431.4,0.41151]
[1728405192363,5.25881422,2431.5,2431.1,5.07199]
[1728405192364,4.84731422,2431.5,2431.1,5.07199]
[1728405192655,4.84731422,2431.5,2431.0,0.41156]
[1728405192656,0.41157,2431.1,2431.0,0.41156]
[1728405193458,0.83687,2431.1,2431.0,0.41156]
[1728405195354,0.816,2431.2,2431.1,0.41153]
[1728405195355,0.41155,2431.2,2431.1,0.41153]
[1728405195557,0.41154,2431.3,2431.2,0.41152]
[1728405195757,5.33664882,2431.4,2431.0,3.22]
[1728405195953,0.41157,2431.1,2431.0,0.41155]
[1728405196453,4.30785882,2431.3,2430.9,7.45676]
[1728405196662,4.71939882,2431.3,2431.2,0.41154]
[1728405196953,4.30785882,2431.3,2431.2,0.41154]
[1728405197253,4.30785882,2431.4,2431.3,0.41152]
[1728405197556,5.58395882,2431.5,2431.2,0.449]
[1728405197755,5.58395882,2431.5,2431.4,0.41151]
[1728405198147,5.17245882,2431.5,2431.2,0.449]
[1728405198349,4.30785882,2431.4,2431.1,0.4421]
[1728405198551,4.30785882,2431.4,2431.3,0.41152]
[1728405199554,5.58395882,2431.5,2431.3,0.41152]
[1728405200156,5.58395882,2431.5,2431.1,1.471]
[1728405200352,5.58395882,2431.5,2431.4,0.41151]
[1728405200353,1.2761,2431.5,2431.4,0.41151]
[1728405200554,4.73590783,2431.5,2431.4,0.41151]
[1728405201360,5.14739783,2431.5,2431.4,0.41151]
[1728405201560,4.73590783,2431.5,2431.1,4.691]
[1728405201756,4.31060783,2431.4,2431.3,0.41151]
[1728405202858,4.73590783,2431.5,2431.4,0.41151]
[1728405203156,4.31060783,2431.5,2431.4,0.41151]
[1728405203357,4.31060783,2431.5,2431.2,1.02884]
[1728405203358,5.13550783,2431.6,2431.3,1.45949]
[1728405203553,5.54697783,2431.6,2431.5,0.41149]
[1728405203753,5.13550783,2431.6,2431.3,0.4307]
[1728405203960,0.41151,2431.4,2431.3,0.41151]
[1728405204158,4.31060783,2431.5,2431.4,0.41151]
[1728405204662,4.71490783,2431.6,2431.5,0.41149]
[1728405204960,0.4043,2431.6,2431.5,0.41149]
[1728405206261,4.71718041,2431.6,2431.5,0.41149]
[1728405206457,0.4043,2431.6,2431.5,0.41149]
[1728405206858,0.81577,2431.6,2431.5,0.41149]
[1728405207056,1.25717,2431.6,2431.5,0.41149]
[1728405207860,0.8457,2431.6,2431.1,3.6621]
[1728405208063,4.85209332,2431.2,2431.1,4.07366]
[1728405208251,0.41151,2431.4,2431.1,3.6621]
[1728405208457,5.39188317,2431.2,2431.1,4.07366]
[1728405208657,5.39188317,2431.2,2431.1,0.41156]
[1728405208852,5.80342317,2431.2,2431.1,0.41156]
[1728405210861,0.83494,2431.2,2431.1,0.41156]
[1728405211055,1.29024,2431.2,2431.1,0.41156]
[1728405211768,1.29024,2431.2,2431.0,0.4296]
[1728405211769,0.8787,2431.2,2431.0,0.4296]
[1728405211966,0.83296,2431.1,2431.0,0.41157]
[1728405212158,0.41159,2431.0,2430.9,0.41158]
[1728405212353,0.41161,2430.8,2430.7,0.85581]
[1728405212665,0.41161,2430.8,2430.3,0.41168]
[1728405212666,0.41168,2430.4,2430.3,0.41168]
[1728405212858,5.3941539,2430.5,2430.2,3.2078]
[1728405213054,5.3941539,2430.5,2430.4,3.63168]
[1728405213255,0.4116,2430.9,2430.8,0.41161]
[1728405213664,0.4157,2431.0,2430.6,1.02911]
[1728405213858,0.4157,2431.0,2430.9,0.41159]
[1728405213859,0.82728,2431.0,2430.9,0.41159]
[1728405214056,0.4157,2431.0,2430.9,0.41159]
[1728405214459,0.82729,2431.0,2430.6,4.24911]
[1728405214663,0.82729,2431.0,2430.9,0.41159]
[1728405214664,5.68014669,2431.0,2430.9,0.41159]
[1728405214869,5.26855669,2431.0,2430.9,0.41159]
[1728405215059,0.4157,2431.0,2430.9,0.41159]
[1728405215563,0.82727,2431.0,2430.9,0.41159]
[1728405215765,0.82727,2431.0,2430.6,4.24911]
[1728405215766,5.27425669,2431.1,2430.6,4.24911]
[1728405215969,5.27425669,2431.1,2431.0,0.41157]
[1728405216359,0.4214,2431.1,2431.0,0.41157]
[1728405216965,5.28435669,2431.2,2431.1,0.41156]
[1728405217153,4.74960272,2431.3,2431.1,3.2078]
[1728405217359,4.31260272,2431.3,2431.2,0.41154]
[1728405217556,4.31260272,2431.3,2431.0,0.8808]
[1728405217762,4.31260272,2431.3,2431.2,0.41154]
[1728405218460,4.72412272,2431.3,2431.2,0.41154]
[1728405219456,4.72412272,2431.3,2431.0,0.8808]
[1728405219869,4.31260272,2431.3,2431.0,0.4551]
[1728405220259,4.72413272,2431.3,2431.2,0.41154]
[1728405220973,4.31260272,2431.3,2431.2,0.41154]
[1728405221168,0.41152,2431.3,2431.2,0.41154]
[1728405222067,5.80196693,2431.3,2431.2,0.41154]
[1728405223068,0.41152,2431.3,2431.2,0.41154]
[1728405223371,5.80204301,2431.3,2431.2,0.41154]
[1728405223577,5.80196533,2431.3,2431.2,0.41154]
[1728405225270,0.41156,2431.1,2431.0,0.4551]
[1728405225476,3.2078,2431.2,2430.7,0.4443]
[1728405225662,0.425,2431.0,2430.7,0.4443]
[1728405225865,0.4116,2430.9,2430.8,0.41159]
[1728405227479,6.41927533,2431.3,2430.7,4.69337]
[1728405227775,6.41927533,2431.3,2431.1,0.41155]
[1728405227776,0.41154,2431.2,2431.1,0.41155]
[1728405228776,0.41154,2431.2,2431.0,0.41156]
[1728405228980,0.41162,2430.8,2430.7,0.41162]
[1728405229165,0.41163,2430.7,2430.6,0.41163]
[1728405229365,3.2078,2430.9,2430.6,0.41163]
[1728405229366,0.41162,2430.8,2430.6,0.41163]
[1728405229969,4.5063,2430.9,2430.6,0.41163]
[1728405230274,0.41163,2430.7,2430.5,0.41164]
[1728405230576,0.41163,2430.7,2430.5,0.41166]
[1728405230775,0.41163,2430.7,2430.4,0.4139]
[1728405230975,0.41163,2430.7,2430.6,0.41164]
[1728405232481,1.02903,2430.8,2430.4,0.4139]
[1728405232686,3.2078,2430.6,2430.3,0.8709]
[1728405232881,3.2078,2430.6,2430.3,4.0909]
[1728405233176,3.77385,2431.1,2430.9,0.41158]
[1728405233383,3.2078,2431.0,2430.9,0.41158]
[1728405233569,3.2078,2431.0,2430.4,1.0292]
[1728405233570,0.4116,2430.9,2430.7,0.8672]
[1728405233879,0.8509,2430.9,2430.7,0.83072]
[1728405234080,0.41161,2430.8,2430.7,0.83072]
[1728405234674,0.8509,2430.9,2430.7,0.83072]
[1728405234976,0.4393,2430.9,2430.7,0.83072]
[1728405235176,0.4116,2430.9,2430.8,0.41161]
[1728405235679,0.4116,2430.9,2430.7,0.4191]
[1728405235680,3.6637,2431.0,2430.7,0.4191]
[1728405235880,0.41161,2430.8,2430.7,0.83072]
[1728405236281,3.6637,2431.0,2430.7,0.83072]
[1728405236478,0.41158,2431.0,2430.7,0.4191]
[1728405236782,0.41158,2431.0,2430.9,0.41159]
[1728405237782,0.8725,2431.1,2430.7,0.4191]
[1728405237983,0.4116,2430.9,2430.8,0.4116]
[1728405238176,3.61938,2431.0,2430.9,0.41159]
[1728405239988,9.00749696,2431.0,2430.9,0.41159]
[1728405240286,5.38811696,2431.1,2430.7,1.44816]
[1728405240489,0.41157,2431.0,2430.9,0.41158]
[1728405240788,4.84902481,2431.0,2430.9,0.82739]
[1728405241184,5.26059481,2431.0,2430.9,0.82739]
[1728405241379,4.84902481,2431.0,2430.9,0.82739]
[1728405241581,4.84902481,2431.0,2430.9,17.36879]
[1728405241582,8.46938515,2431.0,2430.9,17.36879]
[1728405241779,0.41146,2431.7,2430.9,17.3711]
[1728405241780,4.30986034,2431.2,2430.9,17.3711]
[1728405242080,5.38811696,2431.3,2430.9,17.3711]
[1728405242081,4.30986034,2431.5,2431.4,0.41151]
[1728405242882,4.72135034,2431.5,2431.4,0.41151]
[1728405243086,0.41149,2431.5,2431.4,0.41151]
[1728405243292,4.71977666,2431.5,2431.4,0.41151]
[1728405243491,0.41149,2431.5,2431.4,0.41151]
[1728405243986,4.71953583,2431.5,2431.2,3.2078]
[1728405244188,0.41152,2431.3,2431.2,3.61934]
[1728405244389,4.71956583,2431.3,2431.2,0.41154]
[1728405244585,4.30804583,2431.3,2431.2,0.41154]
[1728405244892,4.71956583,2431.3,2431.2,0.41154]
[1728405245188,5.15806583,2431.3,2431.2,0.41154]
[1728405245493,0.85002,2431.3,2431.2,0.41154]
[1728405245890,0.41156,2431.1,2431.0,3.61936]
[1728405246187,0.41156,2431.1,2431.0,3.61937]
[1728405246584,0.4566,2431.2,2430.9,0.82548]
[1728405246585,0.41157,2431.0,2430.9,0.82548]
[1728405249088,0.41157,2431.1,2431.0,0.41156]
[1728405249682,0.41155,2431.2,2430.9,3.6339]
[1728405249889,0.4385,2431.3,2431.2,0.41154]
[1728405250098,0.85002,2431.3,2431.2,0.41154]
[1728405253896,4.84765356,2431.6,2431.2,0.41154]
[1728405253897,9.15569939,2431.6,2431.4,0.41151]
[1728405254090,0.41149,2431.6,2431.5,0.41149]
[1728405254798,3.661,2431.7,2431.4,3.22]
[1728405254993,0.41148,2431.6,2431.5,0.41148]
[1728405256294,3.661,2431.7,2431.5,0.41148]
[1728405256499,3.661,2431.7,2431.3,1.44922]
[1728405256500,4.07247,2431.7,2431.3,1.44922]
[1728405256690,3.661,2431.7,2431.5,0.41148]
[1728405256997,4.07247,2431.7,2431.5,0.41148]
[1728405257191,4.07247,2431.7,2431.6,0.41147]
[1728405257689,0.41148,2431.6,2431.5,0.41148]
[1728405258699,1.02875,2431.5,2430.9,1.44288]
[1728405258899,0.41154,2431.3,2430.9,0.4139]
[1728405259193,1.46808,2431.4,2431.1,0.41154]
[1728405259393,0.41154,2431.2,2431.1,0.41154]
[1728405260397,0.4327,2431.3,2431.2,0.41154]
[1728405260596,5.69187356,2431.3,2431.2,0.87184]
[1728405260791,5.69187356,2431.3,2431.2,0.41154]
[1728405261294,5.28035356,2431.3,2431.1,0.4511]
[1728405261592,5.28035356,2431.3,2430.9,3.6217]
[1728405261593,5.87651356,2431.2,2430.9,3.6217]
[1728405261795,0.41163,2430.8,2430.7,0.41161]
[1728405261993,0.41163,2430.8,2430.4,0.9114]
[1728405261994,0.41166,2430.5,2430.4,0.9114]
[1728405262192,0.41166,2430.5,2430.3,3.6217]
[1728405262193,0.41168,2430.4,2430.3,4.03338]
[1728405262386,4.72079878,2430.4,2430.3,3.61948]
[1728405263792,4.30911878,2430.4,2430.3,3.61948]
[1728405264294,4.72079878,2430.4,2430.3,3.61948]
[1728405267596,0.41168,2430.4,2430.3,3.61948]
[1728405267791,1.02912,2430.6,2430.4,0.41166]
[1728405267792,0.41168,2430.5,2430.4,0.41166]
[1728405269301,0.41168,2430.5,2430.3,3.2078]
[1728405269302,0.41168,2430.4,2430.3,3.2078]
[1728405270700,0.41168,2430.4,2430.3,3.61949]
[1728405270894,0.41168,2430.4,2430.0,4.24936]
[1728405270895,3.2078,2430.5,2430.0,3.22]
[1728405271096,0.41173,2430.2,2430.1,0.41172]
[1728405272498,0.4504,2430.2,2429.9,0.9114]
[1728405272704,0.41174,2430.1,2430.0,0.41173]
[1728405275708,0.41176,2429.9,2429.8,0.41177]
[1728405278313,1.02933,2430.1,2429.7,0.4471]
[1728405278604,0.41176,2430.0,2429.9,0.41174]
[1728405279612,0.41178,2429.9,2429.8,0.41177]
[1728405279909,0.85628,2429.9,2429.8,0.41177]
[1728405280504,0.4445,2429.9,2429.8,0.41177]
[1728405280705,0.41174,2430.1,2430.0,0.41173]
[1728405281005,0.85624,2430.1,2430.0,0.41173]
[1728405281508,0.4445,2430.1,2430.0,0.41173]
[1728405282013,0.4117,2430.3,2430.2,0.41171]
[1728405282014,0.4296,2430.3,2430.2,0.41171]
[1728405283304,4.23515,2430.5,2430.1,0.4198]
[1728405283504,1.30257,2430.5,2430.4,0.41168]
[1728405283901,0.8909,2430.5,2430.4,0.41168]
[1728405284103,1.02901,2430.9,2430.4,3.22]
[1728405284304,0.41164,2430.6,2430.5,1.27975]
[1728405284512,0.41164,2430.7,2430.6,0.41164]
[1728405284806,0.41163,2430.7,2430.5,0.8681]
[1728405285006,0.41164,2430.6,2430.5,0.8681]
[1728405285214,0.4296,2430.8,2430.5,0.8681]
[1728405285508,0.84121,2430.8,2430.7,0.41163]
[1728405285912,0.4296,2430.8,2430.7,0.41163]
[1728405286110,3.2078,2431.1,2430.8,0.41161]
[1728405286305,1.3318,2431.2,2430.7,4.24906]
[1728405286499,0.41156,2431.1,2431.0,0.41157]
[1728405286709,3.2078,2431.1,2431.0,0.41157]
[1728405287204,0.41158,2431.0,2430.9,0.41158]
[1728405287804,3.2078,2431.1,2431.0,0.41157]
[1728405288709,3.61936,2431.1,2431.0,0.41157]
[1728405289908,3.2078,2431.1,2431.0,0.41157]
[1728405290108,0.8789,2431.2,2430.8,3.22]
[1728405290309,0.8789,2431.2,2431.1,0.41156]
[1728405290504,3.2078,2431.4,2431.1,0.41156]
[1728405290705,3.2078,2431.4,2431.3,0.41152]
[1728405292115,1.7332,2431.5,2431.3,0.41152]
[1728405292311,0.41151,2431.4,2431.3,0.41152]
[1728405292505,1.73319,2431.5,2431.4,0.41151]
[1728405292710,1.3217,2431.5,2431.0,4.69174]
[1728405292910,1.3217,2431.5,2431.4,0.41151]
[1728405293314,1.29609,2431.5,2431.4,0.41151]
[1728405293516,0.8846,2431.5,2431.4,0.41151]
[1728405293916,1.29609,2431.5,2431.4,0.41151]
[1728405294616,1.29609,2431.5,2431.3,0.41151]
[1728405295215,0.8846,2431.5,2431.4,0.41151]
[1728405295613,1.29609,2431.5,2431.4,0.41151]
[1728405296217,0.41152,2431.4,2431.3,0.41152]
[1728405297019,0.8846,2431.5,2431.0,3.6506]
[1728405297222,0.41152,2431.4,2431.0,0.4428]
[1728405297417,0.8846,2431.5,2431.0,1.47173]
[1728405297620,0.41151,2431.4,2431.3,0.41151]
[1728405298919,0.8846,2431.5,2431.4,0.41151]
[1728405299723,0.86239,2431.5,2431.4,0.41151]
[1728405300818,0.4509,2431.5,2431.1,0.4503]
[1728405301019,0.4509,2431.5,2431.0,0.4428]
[1728405301217,0.41152,2431.4,2431.0,0.4428]
[1728405301418,0.41152,2431.4,2431.3,0.41152]
[1728405301618,0.4509,2431.5,2431.4,0.41151]
[1728405301925,8.05545356,2431.8,2431.7,0.41146]
[1728405302626,4.84765356,2431.8,2431.7,7.73126]
[1728405303427,4.84765356,2431.8,2431.7,10.95126]
[1728405303727,4.30911878,2431.9,2431.8,4.52344]
[1728405304024,0.41134,2432.4,2432.1,0.41137]
[1728405304225,0.41135,2432.4,2432.2,3.22]
[1728405304520,0.41135,2432.4,2432.2,7.3312]
[1728405304729,1.45679,2432.6,2432.3,4.1112]
[1728405304925,0.41134,2432.4,2432.2,3.22]
[1728405305528,0.83981,2432.6,2432.3,0.41135]
[1728405305722,0.83981,2432.6,2432.4,3.22]
[1728405305723,0.4285,2432.6,2432.4,3.22]
[1728405305917,0.4308,2432.8,2432.6,0.41129]
[1728405306127,0.4308,2432.8,2432.5,3.22]
[1728405306324,0.4112,2433.3,2432.9,0.41124]
[1728405306625,4.69631,2433.5,2433.0,3.22]
[1728405306821,0.41121,2433.2,2433.0,3.22]
[1728405307021,0.41122,2433.2,2433.0,3.22]
[1728405307223,0.41118,2433.4,2433.0,7.74082]
[1728405307516,0.41123,2433.1,2432.8,0.86076]
[1728405307718,1.4885,2433.5,2432.8,0.86076]
[1728405307719,4.6963,2433.5,2432.8,0.86076]
[1728405307924,0.41124,2433.1,2432.8,0.86076]
[1728405308125,0.41124,2433.0,2432.8,0.41126]
[1728405308326,0.41124,2433.0,2432.7,7.25297]
[1728405308829,1.02803,2433.2,2432.7,3.6217]
[1728405309125,0.8647,2433.3,2432.8,3.63127]
[1728405309423,0.8647,2433.3,2432.9,3.63124]
[1728405309424,0.41121,2433.2,2432.9,3.63124]
[1728405309626,0.41123,2433.1,2432.9,6.4278]
[1728405309827,0.41124,2433.0,2432.9,6.4278]
[1728405310023,0.41124,2433.0,2432.9,3.2078]
[1728405310225,0.41123,2433.1,2432.8,3.61907]
[1728405310619,0.41125,2432.9,2432.8,3.2078]
[1728405310827,1.02801,2433.2,2432.8,3.2078]
[1728405311324,0.41123,2433.1,2432.9,0.41125]
[1728405311532,0.8647,2433.3,2432.9,0.41125]
[1728405311727,0.41125,2433.0,2432.8,3.2078]
[1728405311923,0.8647,2433.3,2432.8,3.2078]
[1728405312127,1.43921,2433.2,2432.8,6.83905]
[1728405312329,0.41123,2433.1,2432.8,6.83905]
[1728405312522,0.41123,2433.1,2432.9,0.41125]
[1728405312936,0.41124,2433.0,2432.8,6.83906]
[1728405313234,0.8647,2433.3,2433.1,0.41122]
[1728405313424,0.41121,2433.2,2433.1,0.41122]
[1728405313729,1.48849,2433.5,2433.0,3.22]
[1728405314038,0.41121,2433.2,2433.1,0.41122]
[1728405314431,1.48849,2433.5,2433.0,3.22]
[1728405314633,0.4112,2433.3,2433.1,0.41122]
[1728405314825,0.20120641,2434.2,2433.2,6.4278]
[1728405315132,10.20165,2434.3,2433.2,6.4278]
[1728405315133,0.41113,2433.7,2433.6,0.41113]
[1728405315337,0.41112,2433.7,2433.6,0.41113]
[1728405315937,0.41111,2433.8,2433.5,6.4278]
[1728405316122,0.41111,2433.8,2433.6,0.41112]
[1728405316328,1.02768,2434.0,2433.6,0.41112]
[1728405316523,0.41113,2433.6,2433.5,3.2078]
[1728405316727,0.41117,2433.4,2433.3,0.4139]
[1728405316929,0.41121,2433.2,2433.0,3.63122]
[1728405317133,0.4112,2433.3,2433.1,0.41121]
[1728405317529,0.41119,2433.3,2433.0,3.22]
[1728405317733,0.41119,2433.3,2433.2,0.4112]
[1728405318835,0.85138,2433.4,2433.0,3.22]
[1728405319038,0.41119,2433.3,2433.1,0.41121]
[1728405319332,0.4112,2433.2,2433.1,0.41121]
[1728405319525,0.4402,2433.4,2433.2,0.4112]
[1728405319526,0.4112,2433.3,2433.2,0.4112]
[1728405319838,0.41122,2433.1,2433.0,3.63123]
[1728405320033,0.4402,2433.4,2432.9,3.2078]
[1728405320238,0.82674,2433.0,2432.9,0.41124]
[1728405320534,0.82674,2433.0,2432.9,3.61904]
[1728405321429,0.4155,2433.0,2432.9,3.61904]
[1728405322031,0.82674,2433.0,2432.9,3.61904]
[1728405322735,0.82674,2433.0,2432.9,3.2078]
[1728405322938,0.41125,2432.9,2432.8,3.2078]
[1728405323232,1.44362,2433.0,2432.6,3.22]
[1728405323432,1.02815,2432.9,2432.6,3.22]
[1728405323630,1.02815,2432.9,2432.8,3.63126]
[1728405323631,0.41127,2432.9,2432.8,3.63126]
[1728405323830,0.41127,2432.9,2432.8,3.22]
[1728405324131,0.41127,2432.9,2432.8,3.63127]
[1728405325529,0.41127,2432.9,2432.8,6.83907]
[1728405326330,0.4155,2433.0,2432.9,0.41125]
[1728405326934,0.82674,2433.0,2432.9,0.41125]
[1728405327331,0.4155,2433.0,2432.9,0.41125]
[1728405328637,0.4112,2433.3,2433.2,0.41119]
[1728405328835,0.8291,2433.3,2433.2,0.41119]
[1728405329642,0.82909,2433.3,2433.2,0.4112]
[1728405330029,0.4112,2433.2,2433.1,3.63121]
[1728405330738,0.8291,2433.3,2433.2,0.4112]
[1728405332340,0.4179,2433.3,2433.2,0.4112]
[1728405332843,0.82909,2433.3,2433.2,0.4112]
[1728405333142,0.41123,2433.1,2432.9,3.22]
[1728405333345,0.41122,2433.2,2432.9,3.22]
[1728405333535,1.44589,2433.3,2433.2,0.4112]
[1728405333536,0.8291,2433.3,2433.2,0.4112]
[1728405335535,0.4179,2433.3,2433.0,3.2078]
[1728405335736,0.4179,2433.3,2433.1,0.4112]
[1728405335737,0.41121,2433.2,2433.1,0.4112]
[1728405335935,0.4179,2433.3,2432.7,7.45601]
[1728405336136,0.41122,2433.2,2433.1,0.41121]
[1728405336343,0.41122,2433.1,2433.0,0.41122]
[1728405336544,0.41122,2433.2,2433.1,0.41121]
[1728405336935,0.4179,2433.3,2432.9,3.22]
[1728405337135,0.8291,2433.3,2433.2,0.4112]
[1728405337332,0.4112,2433.2,2433.0,0.41122]
[1728405337639,0.41123,2433.1,2433.0,0.41122]
[1728405337841,0.41123,2433.1,2433.0,0.41124]
[1728405338936,0.41122,2433.1,2433.0,0.41124]
[1728405339831,1.44588,2433.3,2432.9,3.22]
[1728405340144,0.4179,2433.3,2433.0,3.2078]
[1728405340346,0.82909,2433.3,2433.2,0.4112]
[1728405340543,3.2078,2433.8,2433.1,3.22]
[1728405340544,4.79331627,2433.9,2433.5,0.4139]
[1728405340739,0.8583,2434.5,2433.8,6.8389]
[1728405340934,0.4319,2434.5,2434.4,3.631]
[1728405341633,0.419,2434.6,2434.5,0.41098]
[1728405341839,8.41200627,2435.1,2434.5,3.22]
[1728405342034,3.2078,2435.1,2434.8,0.41092]
[1728405342243,3.2078,2435.1,2434.7,3.22]
[1728405342440,4.0587,2435.4,2434.7,3.22]
[1728405342737,0.41085,2435.3,2435.0,0.4109]
[1728405343139,4.0587,2435.4,2434.8,3.2078]
[1728405343342,4.46953,2435.4,2435.0,0.41089]
[1728405343542,4.0587,2435.4,2435.0,0.4109]
[1728405343835,0.8509,2435.4,2435.1,3.22]
[1728405344143,0.8509,2435.4,2435.2,0.41086]
[1728405344342,0.8509,2435.4,2435.1,3.22]
[1728405344343,1.26174,2435.4,2435.1,0.41087]
[1728405344647,1.26174,2435.4,2434.9,3.22]
[1728405344948,0.8509,2435.4,2434.8,3.2078]
[1728405345148,0.8509,2435.4,2434.7,0.41094]
[1728405345452,4.0709,2435.4,2434.6,3.6339]
[1728405345751,0.4109,2435.1,2434.8,0.41092]
[1728405345949,0.8509,2435.4,2435.0,3.22]
[1728405346139,0.8509,2435.4,2434.8,3.22]
[1728405346344,5.09801,2435.4,2434.9,0.41091]
[1728405346639,0.41091,2435.0,2434.7,0.41094]
[1728405346839,4.0709,2435.4,2434.7,0.41094]
[1728405346840,0.41089,2435.1,2434.8,3.2078]
[1728405347039,0.41092,2434.9,2434.6,3.63095]
[1728405347246,0.41097,2434.6,2434.5,3.2078]
[1728405347544,0.4109,2435.0,2434.6,0.41096]
[1728405347736,0.41093,2434.8,2434.6,0.41096]
[1728405347935,4.23502,2435.1,2434.4,3.63099]
[1728405348143,1.05601142,2435.4,2434.4,0.411]
[1728405348144,0.41098,2434.6,2434.4,0.411]
[1728405348352,0.41097,2434.6,2434.4,0.41099]
[1728405348944,0.41097,2434.6,2434.4,3.63099]
[1728405349440,0.41098,2434.5,2434.4,3.22]
[1728405349752,0.41097,2434.6,2434.4,3.22]
[1728405349940,0.41097,2434.6,2434.4,3.631]
[1728405350141,0.8499,2434.7,2434.4,3.22]
[1728405350341,0.41098,2434.5,2434.4,3.22]
[1728405352048,1.87729,2434.7,2434.4,3.22]
[1728405352250,0.41098,2434.6,2434.4,3.63099]
[1728405352446,1.87729,2434.7,2434.4,3.63099]
[1728405352647,0.41098,2434.5,2434.4,3.22]
[1728405353247,1.02742,2434.6,2434.2,0.41103]
[1728405353649,0.41102,2434.3,2434.2,0.41103]
[1728405353855,0.41101,2434.4,2434.2,0.41103]
[1728405354351,1.02742,2434.6,2434.1,3.6339]
[1728405354352,0.41099,2434.5,2434.1,3.6339]
[1728405354548,0.41099,2434.5,2434.4,0.41099]
[1728405355548,0.41099,2434.5,2434.4,4.51899]
[1728405355953,0.41099,2434.5,2434.4,0.41099]
[1728405356556,0.411,2434.4,2434.2,3.2078]
[1728405356753,0.8499,2434.7,2434.1,3.6339]
[1728405356959,0.8499,2434.7,2433.9,4.23551]
[1728405356960,0.41107,2434.0,2433.9,6.4278]
[1728405357154,1.02764,2434.1,2433.6,3.6217]
[1728405357463,0.41117,2433.5,2433.4,0.41116]
[1728405357754,1.02781,2433.7,2433.4,0.41116]
[1728405357960,0.41112,2433.8,2433.7,0.41111]
[1728405358154,0.9039,2434.0,2433.7,3.22]
[1728405358356,1.31497,2434.0,2433.9,3.63108]
[1728405359161,1.31497,2434.0,2433.9,3.22]
[1728405359457,1.31497,2434.0,2433.6,3.2078]
[1728405359458,0.9039,2434.0,2433.7,3.22]
[1728405359665,1.31498,2434.0,2433.9,0.41108]
[1728405360463,0.41104,2434.2,2434.1,0.41104]
[1728405360959,1.28632,2434.4,2434.2,0.41103]
[1728405361262,0.41102,2434.3,2434.2,0.41103]
[1728405361461,1.28631,2434.4,2434.3,0.41102]
[1728405362060,0.4368,2434.4,2434.3,3.63102]
[1728405362260,0.41099,2434.5,2434.3,7.328]
[1728405362460,0.41099,2434.5,2434.4,0.411]
[1728405362765,0.41103,2434.2,2434.1,3.22]